bitfinex-derivatives/quotes_ETHF0:USTF0_20260214
["timestamp","ask_amount","ask_price","bid_price","bid_amount"]
[1771053922952,0.85186215,2054.9,2054.5,0.24349]
[1771053923554,0.85186215,2054.9,2054.5,1.06129638]
[1771053930951,0.83665867,2055.0,2054.6,0.81780638]
[1771053931150,0.83665867,2055.1,2054.6,0.81780638]
[1771053931756,2.96163811,2055.2,2054.6,0.81780638]
[1771053931958,3.79829678,2055.2,2054.6,0.81780638]
[1771053933762,0.83665867,2055.6,2054.8,0.87613959]
[1771053933957,0.83665867,2055.4,2054.8,0.87613959]
[1771053934461,3.79829678,2055.5,2054.8,0.87613959]
[1771053934660,0.83665867,2055.4,2054.8,0.87613959]
[1771053935661,0.83665867,2055.4,2054.8,3.8377777]
[1771053935861,0.83665867,2055.4,2054.9,0.87613959]
[1771053936760,0.83665867,2055.6,2054.9,0.87613959]
[1771053944562,0.00478407,2055.7,2055.2,2.96163811]
[1771053944767,0.00478407,2055.7,2055.3,0.8023905]
[1771053946969,0.88844384,2055.7,2055.3,0.8023905]
[1771053948067,0.00478407,2055.7,2055.3,0.8023905]
[1771053948766,0.88844384,2055.7,2055.3,0.8023905]
[1771053951371,2.96163811,2055.9,2055.3,0.8023905]
[1771053951372,0.88365977,2055.9,2055.3,0.8023905]
[1771053951664,0.88365977,2055.9,2055.5,0.8023905]
[1771053952370,0.88967197,2055.9,2055.5,0.80647507]
[1771053955971,0.88967197,2055.9,2055.5,0.00408457]
[1771053980310,0.88967197,2055.9,2055.2,0.24341]
[1771053980701,0.88967197,2055.9,2055.3,0.84610776]
[1771053981313,0.88967197,2055.9,2055.3,0.85104486]
[1771053982908,0.88967197,2055.9,2055.3,0.0049371]
[1771053984315,0.84220423,2055.7,2055.3,0.0049371]
[1771053984514,0.84220423,2055.7,2054.8,0.84610776]
[1771053985415,0.84220423,2055.7,2054.8,0.85095881]
[1771053993929,0.84425895,2055.5,2054.8,0.85095881]
[1771053997833,0.84425895,2055.5,2054.8,0.00485105]
[1771053998029,0.84425895,2055.3,2054.7,0.24347]
[1771053998438,0.84425895,2055.3,2054.7,1.08315589]
[1771053998837,0.84425895,2055.3,2054.8,0.83968589]
[1771053999038,0.84425895,2055.3,2054.8,0.84353817]
[1771054003844,0.8215607,2055.8,2054.8,0.84353817]
[1771054004142,0.8215607,2055.6,2054.8,0.84353817]
[1771054014958,0.8215607,2055.4,2054.8,0.84353817]
[1771054023157,0.79355352,2055.2,2054.8,0.84353817]
[1771054025966,0.79355352,2055.2,2054.1,4.858]
[1771054025967,0.79355352,2055.2,2054.6,0.79493152]
[1771054026967,0.79355352,2055.2,2054.6,0.79927449]
[1771054037369,0.79355352,2055.0,2054.6,0.00434297]
[1771054037870,0.79355352,2054.8,2054.2,0.79493152]
[1771054038262,0.79355352,2054.8,2054.1,3.20494523]
[1771054038263,2.96141523,2055.1,2054.4,0.79493152]
[1771054038469,0.79355352,2054.9,2054.4,0.79493152]
[1771054038867,2.96141523,2055.1,2054.4,0.79942314]
[1771054039072,0.79355352,2055.0,2054.4,0.79942314]
[1771054039268,0.79355352,2055.0,2054.6,0.79493152]
[1771054039475,0.79355352,2055.1,2054.8,0.79493152]
[1771054039974,0.79355352,2055.2,2054.8,0.79493152]
[1771054040672,0.79355352,2055.4,2054.8,0.79493152]
[1771054045274,0.79355352,2055.2,2054.8,0.79493152]
[1771054049776,0.79355352,2055.2,2054.6,0.79493152]
[1771054061976,2.96141523,2055.3,2054.6,0.79493152]
[1771054062178,0.74774571,2055.3,2054.6,0.79493152]
[1771054064779,8.25141523,2055.5,2054.6,0.79493152]
[1771054064986,8.99916094,2055.5,2054.8,0.78351897]
[1771054065785,0.74774571,2055.4,2054.8,0.78351897]
[1771054069983,0.74774571,2055.2,2054.8,0.78351897]
[1771054070182,0.74774571,2055.2,2054.6,0.78351897]
[1771054080398,0.74774571,2055.2,2054.5,1.02700897]
[1771054080699,0.74774571,2055.1,2054.5,1.02700897]
[1771054083403,0.74774571,2055.1,2054.4,0.76777725]
[1771054083803,0.72326382,2054.9,2054.4,0.00449162]
[1771054084204,0.72326382,2054.9,2054.4,0.76777725]
[1771054084503,0.72326382,2055.1,2054.4,0.76777725]
[1771054097210,0.72326382,2055.1,2054.5,0.76328563]
[1771054102114,0.72326382,2055.1,2054.4,1.01127725]
[1771054103219,0.72326382,2054.9,2054.4,0.76777725]
[1771054103420,0.72326382,2054.9,2054.4,0.00449162]
[1771054109627,0.72326382,2054.9,2054.5,0.76328563]
[1771054114131,0.76527787,2055.0,2054.5,0.76328563]
[1771054114930,3.72747491,2055.2,2054.5,0.76328563]
[1771054115230,0.76527787,2055.0,2054.5,0.76328563]
[1771054116831,0.76527787,2055.0,2054.4,0.77359821]
[1771054119533,0.73513771,2055.1,2054.4,0.77359821]
[1771054138849,0.73513771,2055.0,2054.4,0.77359821]
[1771054143748,4.08218558,2055.4,2054.4,0.77359821]
[1771054143749,0.76810555,2055.3,2054.4,0.77359821]
[1771054143955,4.08218558,2055.4,2054.4,0.77359821]
[1771054143956,6.54553148,2055.2,2054.5,0.75465756]
[1771054144155,0.76810555,2055.1,2054.5,0.75465756]
[1771054148755,3.73070316,2055.2,2054.5,0.75465756]
[1771054148955,0.76810555,2055.2,2054.5,0.75465756]
[1771054150953,0.76810555,2055.3,2054.9,0.75465756]
[1771054151860,0.76810555,2055.5,2055.1,0.75465756]
[1771054152656,0.76810555,2055.7,2055.1,0.75465756]
[1771054152858,6.54096764,2055.6,2055.1,0.75465756]
[1771054153055,0.76810555,2055.6,2055.1,0.75465756]
[1771054160163,0.76810555,2055.5,2054.9,0.75465756]
[1771054182283,0.7122622,2055.3,2054.9,0.75465756]
[1771054183084,0.7122622,2055.1,2054.8,0.69864874]
[1771054183582,0.7122622,2055.2,2054.8,0.69864874]
[1771054203298,0.7122622,2055.2,2054.6,4.28349]
[1771054203599,0.7122622,2055.2,2054.6,0.24349]
[1771054205703,0.7122622,2055.2,2054.6,0.95929425]
[1771054209207,0.7122622,2055.2,2054.7,0.71580425]
[1771054219010,0.7122622,2055.2,2054.5,0.71580425]
[1771054243221,0.7122622,2055.2,2054.6,0.66786525]
[1771054244021,0.732426,2055.5,2054.8,0.66786525]
[1771054244813,0.732426,2055.8,2055.2,0.66786525]
[1771054245023,4.09196946,2055.9,2055.2,0.66786525]
[1771054245024,0.732426,2055.7,2055.2,0.66786525]
[1771054245925,0.732426,2055.8,2055.2,0.66786525]
[1771054253926,0.0060122,2055.9,2055.2,0.66786525]
[1771054254234,0.0060122,2055.9,2055.3,0.66786525]
[1771054258830,0.7384382,2055.9,2055.3,0.66786525]
[1771054260932,0.732426,2055.7,2055.3,0.66786525]
[1771054261134,0.71088848,2055.5,2055.1,0.24343]
[1771054261828,0.71088848,2055.5,2055.1,0.73322399]
[1771054262026,0.71088848,2055.5,2054.9,0.73322399]
[1771054263531,0.71088848,2054.9,2054.1,0.73322399]
[1771054263826,0.71088848,2054.9,2054.2,0.73322399]
[1771054264523,0.71088848,2054.9,2054.2,0.74370368]
[1771054265130,0.71088848,2054.9,2054.4,0.73322399]
[1771054265830,0.71088848,2054.4,2054.2,0.00598807]
[1771054266032,0.00408134,2054.4,2054.2,0.00598807]
[1771054266231,0.71496982,2054.4,2054.3,0.00449162]
[1771054266431,0.00408134,2054.4,2054.2,0.00598807]
[1771054266631,0.00408134,2054.4,2054.2,0.73921206]
[1771054274441,2.96044351,2054.7,2054.2,0.73921206]
[1771054275344,0.00564961,2054.7,2054.2,0.73921206]
[1771054280042,3.6769816,2054.7,2054.2,0.73921206]
[1771054280952,0.71088848,2054.6,2054.2,0.73921206]
[1771054312075,3.64779729,2054.5,2053.9,0.64997418]
[1771054313279,0.68597989,2054.4,2054.1,0.64997418]
[1771054313576,0.69941247,2054.1,2053.5,0.64997418]
[1771054313774,0.69941247,2053.7,2053.4,0.64997418]
[1771054313979,0.69941247,2053.7,2053.4,0.89359418]
[1771054314370,0.69941247,2053.7,2053.4,0.24362]
[1771054314575,0.69941247,2053.7,2053.3,0.64997418]
[1771054314776,3.65985598,2053.6,2053.3,0.64997418]
[1771054314976,0.69941247,2053.5,2053.1,0.44848824]
[1771054315180,0.69941247,2053.5,2053.4,0.24362]
[1771054315379,0.69941247,2053.5,2053.1,0.44848824]
[1771054315581,0.69941247,2053.5,2053.1,0.45214327]
[1771054316182,0.69941247,2053.5,2053.4,0.24362]
[1771054316378,0.69941247,2053.5,2053.1,0.45214327]
[1771054317082,0.69941247,2053.5,2053.4,0.24362]
[1771054317282,0.69941247,2053.5,2053.1,0.45214327]
[1771054320577,0.69941247,2053.8,2053.3,0.44176128]
[1771054320778,3.65985598,2054.0,2053.3,0.44176128]
[1771054320983,0.69941247,2054.0,2053.3,0.44176128]
[1771054321377,0.69941247,2054.0,2053.4,0.24363]
[1771054321572,0.69941247,2054.0,2053.5,0.44204216]
[1771054321978,0.69941247,2054.0,2053.1,0.00365503]
[1771054321979,0.70143344,2054.4,2053.7,0.43574656]
[1771054323579,0.70143344,2054.2,2053.6,0.2436]
[1771054324085,0.70143344,2054.0,2053.6,0.2436]
[1771054326982,0.70143344,2054.0,2053.6,0.67915882]
[1771054327685,0.70143344,2054.0,2053.6,0.2436]
[1771054330289,0.70143344,2054.9,2054.0,0.4408824]
[1771054330492,0.70143344,2054.9,2054.1,0.66927631]
[1771054331080,0.70143344,2054.7,2054.1,0.66927631]
[1771054331285,0.70143344,2054.7,2054.0,0.91283631]
[1771054331490,0.70550532,2054.7,2054.0,0.91283631]
[1771054331988,0.70143344,2054.6,2054.0,0.91283631]
[1771054332282,0.70143344,2054.6,2054.0,0.24356]
[1771054332485,0.70143344,2054.2,2053.5,0.61241437]
[1771054343095,0.70143344,2054.1,2053.4,0.86495166]
[1771054344995,0.70143344,2054.1,2053.5,0.61993663]
[1771054351103,0.70143344,2054.1,2053.4,0.24363]
[1771054360608,0.64586046,2053.9,2053.4,0.24363]
[1771054380924,0.64586046,2053.7,2053.4,0.24363]
[1771054381222,0.64586046,2053.7,2053.1,0.60305185]
[1771054382125,0.64586046,2053.7,2053.4,0.24363]
[1771054383324,0.68851696,2053.5,2053.1,0.69646706]
[1771054383525,0.68851696,2053.5,2053.1,0.00365503]
[1771054384516,2.96642813,2053.4,2052.9,0.93649203]
[1771054384724,0.68851696,2053.3,2052.9,0.93649203]
[1771054385620,0.68851696,2053.3,2052.9,0.94021804]
[1771054385821,0.68851696,2053.3,2052.9,0.24740601]
[1771054386620,0.68851696,2053.3,2052.9,0.94021804]
[1771054387724,0.68851696,2053.3,2052.9,0.24740601]
[1771054391526,0.68851696,2053.1,2052.9,0.24740601]
[1771054391726,0.69197404,2053.1,2052.7,0.69281203]
[1771054392126,0.69197404,2053.1,2052.9,0.24368]
[1771054392326,0.69197404,2053.1,2052.9,0.16982207]
[1771054392631,0.69197404,2053.1,2052.5,0.69281203]
[1771054393131,0.69197404,2053.1,2052.9,0.24368]
[1771054393632,0.69197404,2053.1,2052.9,0.24924729]
[1771054398938,0.69197404,2053.1,2052.9,0.00556729]
[1771054399647,0.68851696,2052.9,2052.4,0.93655203]
[1771054399836,0.68851696,2052.9,2052.4,0.24374]
[1771054400539,0.68851696,2052.9,2052.4,0.24821441]
[1771054400935,0.68851696,2052.9,2052.4,0.94102644]
[1771054407743,0.68851696,2052.9,2052.4,0.24821441]
[1771054411944,0.00345708,2053.1,2052.4,0.24821441]
[1771054412149,0.64481363,2053.3,2052.7,2.96642813]
[1771054412746,0.64481363,2053.3,2052.8,0.68444269]
[1771054413148,0.64481363,2053.3,2052.9,0.68444269]
[1771054413447,0.64986743,2053.3,2052.9,0.68444269]
[1771054430958,0.0050538,2053.3,2052.9,0.68444269]
[1771054431755,0.70720327,2053.3,2052.9,0.68444269]
[1771054432158,0.70214947,2053.5,2053.1,0.66132135]
[1771054433157,0.7055566,2053.5,2053.1,0.66132135]
[1771054436063,0.00340713,2053.5,2053.1,0.66132135]
[1771054436563,0.70214947,2053.9,2053.4,0.66132135]
[1771054437662,0.70760183,2053.9,2053.3,0.24364]
[1771054437855,0.70760183,2053.9,2053.3,0.90496135]
[1771054439763,0.70214947,2053.7,2053.3,0.90496135]
[1771054441168,0.00545236,2053.9,2053.3,0.24364]
[1771054441169,0.70060501,2053.5,2053.3,0.24364]
[1771054441459,0.70060501,2053.5,2052.8,0.65371801]
[1771054441967,0.70060501,2053.3,2052.9,0.65371801]
[1771054442466,0.70060501,2053.3,2052.8,0.89741801]
[1771054443159,0.70060501,2053.3,2052.8,0.2437]
[1771054445674,0.70060501,2053.1,2052.8,0.2367317]
[1771054446174,0.70060501,2053.1,2052.8,0.23167797]
[1771054447772,0.70060501,2053.1,2052.5,0.65371801]
[1771054448171,0.70060501,2053.1,2052.8,0.2437]
[1771054448475,0.70060501,2053.1,2052.8,0.89741801]
[1771054450570,0.70060501,2053.5,2052.9,0.65371801]
[1771054450774,2.96772613,2053.4,2052.8,0.2437]
[1771054450971,0.70060501,2053.3,2052.8,0.2437]
[1771054454682,0.70060501,2053.1,2052.5,0.65371801]
[1771054464885,5.27045236,2053.9,2052.4,0.00447441]
[1771054464886,0.70060501,2053.7,2052.9,0.65371801]
[1771054469589,0.70060501,2053.5,2052.9,0.65371801]
[1771054473696,0.70060501,2053.5,2052.8,0.89102339]
[1771054474491,0.70060501,2053.5,2052.9,0.64732339]
[1771054488590,0.70060501,2053.5,2052.7,0.65720729]
[1771054488797,0.00545236,2053.9,2052.7,0.65720729]
[1771054488798,0.67286444,2053.3,2052.7,0.65720729]
[1771054489297,0.67286444,2053.3,2052.6,0.24372]
[1771054489298,0.67286444,2053.3,2052.6,0.90092729]
[1771054489902,0.67286444,2053.3,2052.7,0.65720729]
[1771054490504,0.67286444,2053.3,2052.6,0.24372]
[1771054490704,0.67286444,2053.3,2052.6,0.90092729]
[1771054490900,0.67286444,2053.3,2052.7,0.65720729]
[1771054495296,0.67286444,2053.6,2052.9,0.65720729]
[1771054495999,0.67286444,2053.6,2052.6,2.96772613]
[1771054496000,0.67286444,2053.8,2053.1,0.65720729]
[1771054496907,0.67286444,2053.8,2053.2,3.62493342]
[1771054497707,0.67286444,2053.8,2053.2,2.96772613]
[1771054497904,0.67286444,2053.8,2053.1,0.65720729]
[1771054502205,0.67286444,2053.8,2053.0,3.21140613]
[1771054502413,0.67286444,2053.8,2052.8,0.67330547]
[1771054502711,0.67286444,2053.8,2052.9,0.67330547]
[1771054504512,0.67286444,2053.8,2053.2,0.67330547]
[1771054505010,0.67286444,2053.8,2053.3,3.63935034]
[1771054507407,0.67286444,2053.8,2053.3,2.96604487]
[1771054509209,0.67286444,2053.8,2053.1,2.96604487]
[1771054511310,0.00545236,2053.9,2052.8,0.67330547]
[1771054511311,0.68252493,2053.5,2052.8,0.67330547]
[1771054511511,0.68252493,2053.5,2052.9,3.63935034]
[1771054514716,0.68252493,2053.8,2053.0,0.67330547]
[1771054515013,0.68252493,2053.6,2053.2,0.67330547]
[1771054519612,0.68252493,2053.5,2052.7,2.96604487]
[1771054519812,0.68252493,2053.5,2052.8,0.67330547]
[1771054520816,0.68252493,2053.5,2053.0,0.67330547]
[1771054524211,0.68252493,2053.5,2052.7,2.96604487]
[1771054524212,0.68252493,2053.5,2052.8,0.67330547]
[1771054542234,0.67997587,2053.3,2052.7,2.96604487]
[1771054542733,0.67997587,2053.3,2052.8,0.62923434]
[1771054549840,0.67997587,2053.5,2052.8,0.62923434]
[1771054551742,2.96604487,2053.4,2052.8,0.62923434]
[1771054552040,0.67997587,2053.3,2052.8,0.62923434]
[1771054559647,0.67997587,2053.3,2052.6,0.62923434]
[1771054564957,0.67207891,2052.9,2052.5,0.62052867]
[1771054566055,0.67207891,2052.9,2052.4,0.00447441]
[1771054566857,0.67207891,2052.9,2052.4,0.62500308]
[1771054570357,0.67207891,2053.1,2052.4,0.62500308]
[1771054570562,0.67207891,2053.3,2052.4,0.62500308]
[1771054571765,0.67207891,2053.2,2052.4,0.62500308]
[1771054572068,4.537,2053.4,2052.4,0.62500308]
[1771054572069,0.67207891,2053.0,2052.4,0.62500308]
[1771054587481,0.67207891,2053.0,2052.4,0.00447441]
[1771054588775,0.67207891,2053.0,2052.4,0.62500308]
[1771054596190,0.67207891,2053.0,2052.4,0.00447441]
[1771054613797,0.6556713,2052.8,2052.4,0.00447441]
[1771054621305,0.6556713,2052.8,2052.4,0.63992048]
[1771054631226,0.6556713,2052.8,2052.4,0.00447441]
[1771054631523,0.6556713,2052.8,2052.4,0.63992048]
[1771054632524,0.6556713,2052.8,2052.4,0.00447441]
[1771054648335,2.96913996,2052.7,2052.4,0.00447441]
[1771054648538,0.58401434,2052.6,2052.4,0.00447441]
[1771054650737,0.58401434,2052.6,2052.0,0.24379]
[1771054650940,0.58401434,2052.6,2052.0,0.81092463]
[1771054651138,0.58401434,2052.6,2052.1,0.56713463]
[1771054651739,0.58401434,2052.6,2052.1,0.57206306]
[1771054658543,0.58401434,2052.6,2052.1,0.00492843]
[1771054658745,0.58401434,2052.6,2052.1,0.57206306]
[1771054663244,0.58401434,2052.6,2052.1,0.00492843]
[1771054663444,0.56272545,2052.4,2052.1,0.00492843]
[1771054663652,0.56722315,2052.4,2052.1,0.00492843]
[1771054664247,0.56722315,2052.4,2051.8,9.88353886]
[1771054664248,0.56272545,2052.2,2051.8,10.45649287]
[1771054665341,0.56272545,2052.2,2051.8,10.46000639]
[1771054666539,0.0044977,2052.4,2050.7,0.57295401]
[1771054666540,0.56272545,2051.8,2050.7,0.57295401]
[1771054666743,5.93827992,2051.9,2050.7,0.57295401]
[1771054666744,3.53186541,2051.1,2050.7,0.57295401]
[1771054667342,0.56272545,2051.0,2050.7,0.57295401]
[1771054667545,3.53186541,2051.1,2050.7,0.57689632]
[1771054668742,0.56272545,2051.1,2050.7,0.57689632]
[1771054675054,0.56272545,2051.0,2050.7,0.57689632]
[1771054675853,0.56272545,2051.0,2050.7,0.00394231]
[1771054681748,0.58840167,2050.8,2050.5,0.0008]
[1771054682554,0.58840167,2051.3,2050.6,0.59091946]
[1771054682755,0.59465358,2051.3,2050.6,0.59449988]
[1771054686656,0.59465358,2051.3,2050.8,0.59091946]
[1771054686865,2.96913996,2051.5,2051.0,0.59091946]
[1771054686866,0.58840167,2051.5,2051.0,0.59091946]
[1771054687162,0.58840167,2051.6,2051.0,0.59091946]
[1771054687456,2.96913996,2051.7,2051.0,0.59091946]
[1771054687655,3.55754163,2051.7,2051.0,0.59091946]
[1771054687857,0.58840167,2051.6,2051.0,0.59091946]
[1771054690057,0.59434375,2051.7,2051.0,0.59091946]
[1771054690560,0.00594208,2051.7,2051.2,0.59091946]
[1771054690762,4.043,2052.4,2051.2,0.59091946]
[1771054690763,0.58840167,2052.0,2051.2,0.59091946]
[1771054691859,0.59236715,2052.0,2051.2,0.59091946]
[1771054703168,0.59236715,2052.0,2051.4,0.59091946]
[1771054705569,0.00396548,2052.0,2051.4,0.59091946]
[1771054705771,0.59236715,2052.0,2051.4,0.59091946]
[1771054714362,0.59236715,2052.0,2051.6,0.59570725]
[1771054714363,3.57897311,2052.0,2051.6,0.59570725]
[1771054714562,3.57500763,2052.1,2051.6,0.59570725]
[1771054715281,3.57500763,2052.1,2050.7,8.97350114]
[1771054715282,0.63798513,2051.8,2051.3,0.24388]
[1771054715470,0.64363553,2051.8,2051.3,0.24388]
[1771054715870,0.64363553,2051.8,2051.4,0.00254505]
[1771054721175,0.64363553,2051.8,2051.3,0.24388]
[1771054727183,0.62746308,2051.3,2050.6,0.22198913]
[1771054727383,0.62746308,2051.3,2050.8,0.24393]
[1771054730992,0.62746308,2051.3,2050.9,0.29323623]
[1771054733288,0.62746308,2051.3,2050.8,0.54216073]
[1771054733490,0.62746308,2051.3,2050.8,4.38893]
[1771054734995,0.62746308,2051.3,2050.8,4.68916961]
[1771054735493,0.62746308,2051.3,2050.9,0.30044423]
[1771054735791,0.62746308,2051.7,2051.1,0.64301898]
[1771054747901,0.62746308,2051.7,2051.0,5.07542953]
[1771054748102,0.62746308,2051.7,2051.1,0.66051953]
[1771054748402,0.63011151,2051.6,2051.1,0.66051953]
[1771054748598,0.63011151,2051.6,2051.0,4.28791]
[1771054748800,0.63011151,2051.6,2051.0,4.94842953]
[1771054750906,0.63011151,2051.4,2051.1,0.66051953]
[1771054752804,0.63011151,2051.6,2051.1,0.66051953]
[1771054753002,0.63011151,2051.7,2051.1,0.66051953]
[1771054754806,0.63011151,2051.7,2051.3,0.66051953]
[1771054758509,3.60851645,2051.8,2051.3,0.66051953]
[1771054758705,0.63011151,2051.7,2051.3,0.66051953]
[1771054759512,0.62266351,2051.7,2051.3,0.66051953]
[1771054773620,2.97840494,2051.8,2051.3,0.66051953]
[1771054773822,3.0006948,2051.8,2051.3,0.66051953]
[1771054780029,3.0006948,2051.8,2051.4,0.24387]
[1771054780725,2.97840494,2051.8,2051.5,0.72052864]
[1771054780929,2.9850857,2051.8,2051.5,0.72052864]
[1771054782224,2.4718957,2051.8,2051.5,0.72052864]
[1771054782431,0.83398991,2051.8,2051.5,0.72052864]
[1771054783129,0.84011344,2051.8,2051.5,0.72052864]
[1771054790336,0.84011344,2051.8,2051.4,0.24387]
[1771054790537,0.84011344,2051.8,2051.4,0.96437963]
[1771054794545,0.02164506,2051.7,2051.4,0.24387]
[1771054794746,0.02164506,2051.7,2051.4,0.23167601]
[1771054796448,0.02164506,2051.7,2051.4,0.95833289]
[1771054801155,0.83343268,2051.8,2051.4,0.95833289]
[1771054801156,0.87030041,2051.8,2051.5,0.72487366]
[1771054801855,0.03847613,2051.7,2051.4,0.95654967]
[1771054805958,0.87964814,2051.8,2051.4,0.95654967]
[1771054806459,0.04502668,2051.7,2051.4,0.95654967]
[1771054811264,0.04502668,2051.7,2051.4,0.23167601]
[1771054811862,0.04502668,2051.7,2051.3,0.72469818]
[1771054812061,0.04502668,2051.7,2051.4,0.24387]
[1771054815568,0.04502668,2051.7,2051.4,0.96894028]
[1771054821567,0.04502668,2051.7,2050.6,2.975779]
[1771054821773,0.69358549,2051.6,2051.0,0.72343229]
[1771054824774,0.69358549,2051.6,2051.1,0.2439]
[1771054825076,0.69358549,2051.7,2051.2,0.72343229]
[1771054841779,0.69358549,2051.7,2051.1,0.98588125]
[1771054841981,0.7714944,2051.6,2051.2,0.74198125]
[1771054843586,0.77761793,2051.8,2051.4,0.74198125]
[1771054847581,0.00612353,2051.8,2051.4,0.74198125]
[1771054848483,0.7714944,2052.2,2051.4,0.74198125]
[1771054848786,0.7714944,2052.1,2051.6,0.74198125]
[1771054849181,0.77761793,2052.0,2051.6,0.74198125]
[1771054849382,0.7714944,2052.0,2051.6,0.74198125]
[1771054849580,0.00399883,2052.0,2051.6,0.74198125]
[1771054854690,0.77549323,2052.0,2051.6,0.74198125]
[1771054855092,0.00399883,2052.0,2051.6,0.74198125]
[1771054861892,0.00399883,2052.0,2051.5,0.24385]
[1771054861893,0.72223219,2052.0,2051.5,0.24385]
[1771054862098,0.72223219,2052.0,2051.5,1.02260343]
[1771054862296,0.72223219,2052.0,2050.7,0.05693707]
[1771054862297,0.71823336,2051.8,2050.7,0.05693707]
[1771054862497,0.71823336,2051.8,2050.6,0.00358042]
[1771054862498,0.71823336,2051.8,2051.3,0.05693707]
[1771054864193,0.71823336,2051.8,2051.2,0.06631228]
[1771054866700,0.75906743,2051.9,2051.2,0.06631228]
[1771054873011,0.75600003,2051.7,2051.2,0.06631228]
[1771054888913,0.75600003,2051.7,2051.1,4.42989]
[1771054889120,0.75600003,2051.7,2051.1,4.5623566]
[1771054893519,0.75600003,2051.7,2051.1,0.3763566]
[1771054893727,0.75600003,2051.7,2051.2,0.13758512]
[1771054900131,0.75600003,2051.7,2051.3,0.24388]
[1771054900630,0.75600003,2051.7,2051.3,0.37105776]
[1771054905842,0.75600003,2051.7,2051.3,0.24388]
[1771054906642,0.00399883,2052.0,2051.3,0.24388]
[1771054906643,0.78630973,2051.5,2051.3,0.24388]
[1771054906839,0.78630973,2051.5,2051.0,4.59585552]
[1771054907340,0.78630973,2051.5,2051.3,0.24388]
[1771054907940,0.78630973,2051.5,2051.0,4.59585552]
[1771054908138,0.78630973,2051.5,2051.3,0.24388]
[1771054915647,0.78630973,2051.5,2051.1,4.045]
[1771054916143,0.78630973,2051.5,2050.9,0.11381958]
[1771054916347,0.78630973,2051.5,2051.0,4.045]
[1771054919250,0.29383973,2051.5,2051.1,0.2439]
[1771054919545,9.73e-06,2051.5,2051.3,0.24388]
[1771054919745,0.78630973,2051.7,2051.3,0.24388]
[1771054920439,0.78630973,2051.7,2051.3,0.99177351]
[1771054920651,0.05467934,2051.7,2051.3,0.99177351]
[1771054921854,0.79897195,2051.9,2051.4,0.74125117]
[1771054924255,0.79897195,2051.7,2051.4,0.74125117]
[1771054928057,0.79897195,2051.7,2051.3,0.24388]
[1771054928255,0.79897195,2051.7,2051.3,0.98513117]
[1771054929566,0.79897195,2051.7,2051.3,0.24388]
[1771054940373,0.79897195,2051.7,2051.3,0.18920066]
[1771054940576,0.79897195,2051.9,2051.4,0.74125117]
[1771054973600,0.00399883,2052.0,2051.6,0.78038136]
[1771054976602,0.75626343,2052.5,2052.0,0.78038136]
[1771054976902,0.75626343,2052.7,2052.2,0.78038136]
[1771054977102,4.08469777,2053.2,2052.2,0.78038136]
[1771054977103,0.75626343,2053.0,2052.2,0.78038136]
[1771054977302,0.75626343,2052.8,2052.2,0.78038136]
[1771054977703,0.76032554,2052.8,2052.4,0.78038136]
[1771054979202,0.00406211,2052.8,2052.4,0.78038136]
[1771054979496,0.76032554,2052.8,2052.4,0.78038136]
[1771054987009,0.00406211,2052.8,2052.4,0.78038136]
[1771054987206,0.76602954,2053.0,2052.4,0.78038136]
[1771054987503,7.87387585,2054.3,2052.3,0.24376]
[1771054987504,0.76602954,2053.5,2052.6,0.76035286]
[1771054987709,0.76602954,2053.3,2052.6,0.76035286]
[1771054988209,0.76987029,2053.3,2052.6,0.76035286]
[1771054995015,0.76602954,2053.1,2052.6,0.76035286]
[1771055000326,0.76602954,2052.9,2052.6,0.76035286]
[1771055000622,0.76602954,2052.7,2052.5,4.80673]
[1771055000821,3.73401277,2052.8,2052.5,5.56708286]
[1771055001012,2.96798323,2052.8,2052.6,0.76035286]
[1771055001212,0.76602954,2052.9,2052.6,0.76035286]
[1771055001416,3.73401277,2053.0,2052.6,0.76035286]
[1771055001819,0.76602954,2052.9,2052.6,0.76035286]
[1771055002018,3.73401277,2053.0,2052.6,0.76035286]
[1771055005021,0.76602954,2052.9,2052.6,0.76035286]
[1771055005723,3.73401277,2053.0,2052.6,0.76035286]
[1771055006425,0.76602954,2052.9,2052.6,0.76035286]
[1771055006725,0.76602954,2053.2,2052.8,0.76035286]
[1771055007322,3.73401277,2053.2,2052.8,0.76035286]
[1771055010533,0.76987029,2053.3,2052.9,1.00404286]
[1771055010724,0.76987029,2053.3,2053.0,0.76035286]
[1771055012230,0.00384075,2053.3,2053.0,0.76035286]
[1771055012932,0.80872226,2053.6,2053.0,0.76035286]
[1771055013134,0.80872226,2053.6,2053.2,0.79230438]
[1771055013836,0.81351114,2053.6,2053.2,0.79230438]
[1771055017733,1e-08,2053.6,2053.2,0.79230438]
[1771055019334,1e-08,2053.6,2053.3,0.24364]
[1771055019535,0.8427309,2053.9,2053.4,0.7863528]
[1771055019929,0.8427309,2054.1,2053.6,0.7863528]
[1771055020536,0.84775154,2054.1,2053.6,0.7863528]
[1771055020736,3.81071413,2054.0,2053.6,0.7863528]
[1771055020936,0.8427309,2053.9,2053.6,0.7863528]
[1771055022637,0.8427309,2053.7,2053.5,0.22692944]
[1771055023341,2.96798323,2054.0,2053.5,0.22692944]
[1771055023342,0.8427309,2053.9,2053.6,0.7863528]
[1771055023537,3.81071413,2054.0,2053.6,0.7863528]
[1771055023738,0.8427309,2053.9,2053.6,0.7863528]
[1771055024138,0.8427309,2053.9,2053.5,1.01328224]
[1771055024436,0.8427309,2053.9,2053.6,0.7863528]
[1771055027834,0.8427309,2053.9,2053.5,0.22692944]
[1771055028038,0.8427309,2053.9,2053.5,1.01328224]
[1771055028944,0.8427309,2053.9,2053.6,0.7863528]
[1771055029440,0.8427309,2053.9,2053.5,1.01328224]
[1771055030044,0.8427309,2053.9,2053.6,0.7863528]
[1771055030349,0.8427309,2053.9,2053.5,0.22692944]
[1771055030543,0.8427309,2053.9,2053.5,1.01328224]
[1771055033950,0.8427309,2053.9,2053.6,0.7863528]
[1771055035653,0.8427309,2053.9,2053.5,1.01328224]
[1771055038353,0.8427309,2053.9,2053.5,0.22692944]
[1771055038654,0.8427309,2053.9,2053.5,1.01328224]
[1771055041157,0.78390537,2053.7,2053.5,0.22692944]
[1771055041455,3.7518886,2053.8,2053.4,0.76956048]
[1771055042058,3.7518886,2053.8,2053.5,0.24362]
[1771055043149,3.7518886,2053.8,2053.5,1.01318048]
[1771055043557,0.78390537,2053.7,2053.5,0.24362]
[1771055043755,0.78390537,2053.7,2053.4,0.76956048]
[1771055043756,3.7518886,2053.8,2053.4,0.76956048]
[1771055044056,3.7518886,2054.0,2053.4,0.76956048]
[1771055044657,0.78390537,2053.9,2053.4,0.76956048]
[1771055045059,0.78390537,2053.9,2053.5,0.24362]
[1771055045253,0.78390537,2053.9,2053.6,0.76956048]
[1771055048066,0.78390537,2053.7,2053.3,0.76956048]
[1771055050364,0.78390537,2054.0,2053.3,0.76956048]
[1771055050569,0.78390537,2053.7,2053.3,0.76956048]
[1771055054678,0.78390537,2053.7,2053.1,0.76956048]
[1771055054974,0.78390537,2053.7,2053.2,0.76956048]
[1771055055871,2.96639523,2053.9,2053.2,0.76956048]
[1771055056072,0.78390537,2053.9,2053.2,0.76956048]